fUST/lending_fUST_20240424
["ID","MTS","AMOUNT","RATE_DAILY","PERIOD"]
[323387356,1713964246345,-200.26874706,0.00016438,2]
[323387357,1713964246354,-228.10138109,0.00016438,2]
[323387358,1713964246363,-500.0,0.00016438,2]
[323387359,1713964246372,-500.0,0.00016438,2]
[323387360,1713964246381,-500.0,0.00016438,2]
[323387361,1713964246389,-361.2304309,0.00016438,2]
[323387364,1713964737099,920.0,0.000266,120]
[323387407,1713965432143,-154.84515485,0.00012034,2]
[323387408,1713965432152,-684.26860201,0.00012034,2]
[323387409,1713965432165,-806.27782882,0.00012034,2]
[323387410,1713965432174,-977.94969331,0.00012035,2]
[323387412,1713965432183,-261.83084176,0.00012035,2]
[323387440,1713965438224,-154.84515485,0.00012033,2]
[323387441,1713965438234,-179.11362691,0.00012033,2]
[323387442,1713965438246,-326.24988,0.00012033,2]
[323387443,1713965438281,-1073.15178155,0.00012033,2]
[323387444,1713965438291,-1628.53244658,0.00012035,2]
[323387445,1713965438301,-300.0,0.00012035,2]
[323387446,1713965438310,-300.0,0.00012035,2]
[323387447,1713965438320,-1394.68761216,0.00012036,2]
[323387448,1713965438329,-157.1377834,0.00012057,2]
[323387449,1713965438339,-157.1377834,0.00012058,2]
[323387450,1713965438348,-157.1377834,0.0001206,2]
[323387451,1713965438357,-157.1377834,0.00012061,2]
[323387452,1713965438366,-1264.067053,0.00012061,2]
[323387453,1713965438376,-247.79609571,0.00012158,2]
[323387455,1713965438385,-157.76351589,0.00012159,2]
[323387456,1713965438394,-59169.7357574,0.0001216,2]
[323387457,1713965438403,-410038.6430462,0.0001216,2]
[323387458,1713965438413,-24900.0,0.00012161,2]
[323387459,1713965438422,-1264.067053,0.00012339,2]
[323387460,1713965438431,-1264.067053,0.00012618,2]
[323387462,1713965438440,-1264.067053,0.00012896,2]
[323387463,1713965438454,-44444.0,0.00013173,2]
[323387465,1713965438464,-1264.067053,0.00013174,2]
[323387466,1713965438476,-420.0,0.00013211,2]
[323387467,1713965438485,-420.0,0.00013239,2]
[323387468,1713965438494,-2490.55845798,0.00013274,2]
[323387469,1713965438503,-35814.32839589,0.00013275,2]
[323387471,1713965438512,-154.99980925,0.00013372,2]
[323387472,1713965438522,-162.41813688,0.00013372,2]
[323387473,1713965438531,-1422.11192019,0.00013372,2]
[323387475,1713965438540,-476.15676877,0.00013372,2]
[323387476,1713965438549,-564.51895848,0.00013372,2]
[323387478,1713965438560,-1059.78881259,0.00013372,2]
[323387479,1713965438569,-154.95116331,0.00013372,2]
[323387480,1713965438579,-372.16332959,0.00013372,2]
[323387481,1713965438588,-169.0242405,0.00013372,2]
[323387482,1713965438597,-154.84515485,0.00013372,2]
[323387483,1713965438607,-329.68012038,0.00013372,2]
[323387484,1713965438617,-154.90534822,0.00013372,2]
[323387485,1713965438626,-277.73442435,0.00013372,2]
[323387486,1713965438635,-154.94382346,0.00013372,2]
[323387487,1713965438644,-309.67484219,0.00013372,2]
[323387488,1713965438653,-326.17957249,0.00013372,2]
[323387489,1713965438663,-154.99403319,0.00013372,2]
[323387490,1713965438671,-185.94441437,0.00013372,2]
[323387491,1713965438680,-7862.78095894,0.00013373,2]
[323387492,1713965438689,-1000.0,0.000136,2]
[323387493,1713965438701,-17373.27,0.00013698,2]
[323387494,1713965438710,-1578.548792,0.00013699,2]
[323387495,1713965438719,-17373.27,0.00013972,2]
[323387496,1713965438727,-638.01106262,0.00014,2]
[323387497,1713965438736,-927.87368973,0.00014,2]
[323387498,1713965438746,-1016.53700423,0.00014113,2]
[323387499,1713965438755,-17373.27,0.00014246,2]
[323387500,1713965438764,-587.0,0.00014503,2]
[323387501,1713965438773,-17373.27,0.0001452,2]
[323387502,1713965438782,-587.0,0.00014562,2]
[323387503,1713965438791,-295.0,0.00014566,2]
[323387504,1713965438800,-362.97368224,0.0001479,2]
[323387505,1713965438809,-471.82642597,0.0001479,2]
[323387506,1713965438819,-267.6305246,0.0001479,2]
[323387507,1713965438828,-193.60170872,0.00014791,2]
[323387508,1713965438838,-17373.27,0.00014794,2]
[323387509,1713965438847,-312.66661178,0.00015,2]
[323387510,1713965438856,-157.06659545,0.00015,2]
[323387511,1713965438865,-938.69803003,0.00015,2]
[323387512,1713965438874,-154.84515485,0.00015,2]
[323387513,1713965438883,-2099.79903615,0.00015,2]
[323387514,1713965438892,-1676.10589151,0.00015,2]
[323387515,1713965438901,-628.29006624,0.00015,2]
[323387516,1713965438910,-2776.29930889,0.00015,2]
[323387517,1713965438919,-154.84515485,0.00015,2]
[323387518,1713965438929,-17373.27,0.00015068,2]
[323387519,1713965438938,-153.0,0.00015134,2]
[323387520,1713965438947,-153.0,0.00015134,2]
[323387521,1713965438958,-153.0,0.00015134,2]
[323387522,1713965438967,-17373.27,0.00015342,2]
[323387523,1713965438976,-153.0,0.0001548,2]
[323387524,1713965438985,-153.0,0.0001548,2]
[323387525,1713965438995,-153.0,0.0001548,2]
[323387526,1713965439004,-17373.27,0.00015616,2]
[323387527,1713965439014,-17373.27,0.0001589,2]
[323387528,1713965439024,-823.0,0.0001592,2]
[323387529,1713965439033,-156.81247851,0.00015955,2]
[323387530,1713965439042,-153.0,0.00015956,2]
[323387531,1713965439051,-154.1550068,0.00015956,2]
[323387532,1713965439060,-153.0,0.00015956,2]
[323387533,1713965439070,-153.0,0.00015956,2]
[323387534,1713965439078,-262.8773331,0.00015956,2]
[323387535,1713965439087,-153.0,0.00015956,2]
[323387536,1713965439096,-153.0,0.00015956,2]
[323387537,1713965439119,-153.0,0.00015956,2]
[323387538,1713965439129,-306.0,0.00015956,2]
[323387539,1713965439138,-153.0,0.00015956,2]
[323387540,1713965439148,-153.0,0.00015956,2]
[323387541,1713965439156,-153.0,0.00015956,2]
[323387542,1713965439166,-306.0,0.00015956,2]
[323387543,1713965439175,-153.0,0.00015956,2]
[323387544,1713965439184,-153.0,0.00015956,2]
[323387545,1713965439194,-153.0,0.00015956,2]
[323387546,1713965439205,-153.0,0.00015956,2]
[323387547,1713965439215,-153.0,0.00015956,2]
[323387548,1713965439224,-153.0,0.00015973,2]
[323387549,1713965439234,-153.0,0.00015973,2]
[323387550,1713965439243,-153.0,0.00015973,2]
[323387551,1713965439253,-153.0,0.00015973,2]
[323387552,1713965439262,-238.93971122,0.00016,2]
[323387553,1713965439272,-15215.38422108,0.00016,2]
[323387554,1713965439281,-5000.0,0.00016,2]
[323387555,1713965439290,-823.0,0.00016019,2]
[323387556,1713965439299,-17373.27,0.00016164,2]
[323387557,1713965439308,-620.16235585,0.00016165,2]
[323387558,1713965439317,-153.43131253,0.00016273,2]
[323387559,1713965439327,-153.0,0.00016298,2]
[323387560,1713965439336,-153.0,0.00016298,2]
[323387561,1713965439345,-153.0,0.00016298,2]
[323387562,1713965439354,-153.0,0.00016298,2]
[323387563,1713965439364,-587.0,0.000163,2]
[323387564,1713965439373,-306.0,0.00016302,2]
[323387565,1713965439382,-153.0,0.00016302,2]
[323387566,1713965439392,-153.0,0.00016302,2]
[323387567,1713965439401,-153.0,0.00016302,2]
[323387568,1713965439410,-177.75,0.000164,2]
[323387569,1713965439421,-228.59475437,0.00016428,2]
[323387570,1713965439430,-500.0,0.00016438,2]
[323387571,1713965439439,-500.0,0.00016438,2]
[323387572,1713965439451,-500.0,0.00016438,2]
[323387573,1713965439461,-500.0,0.00016438,2]
[323387574,1713965439470,-500.0,0.00016438,2]
[323387575,1713965439483,-500.0,0.00016438,2]
[323387576,1713965439492,-500.0,0.00016438,2]
[323387577,1713965439501,-500.0,0.00016438,2]
[323387578,1713965439511,-500.0,0.00016438,2]
[323387579,1713965439520,-500.0,0.00016438,2]
[323387580,1713965439532,-500.0,0.00016438,2]
[323387581,1713965439541,-501.63269683,0.00016438,2]
[323387582,1713965439550,-500.0,0.00016438,2]
[323387583,1713965439562,-500.0,0.00016438,2]
[323387584,1713965439572,-500.0,0.00016438,2]
[323387585,1713965439583,-500.0,0.00016438,2]
[323387586,1713965439591,-500.0,0.00016438,2]
[323387587,1713965439600,-414.75664885,0.00016438,2]
[323387588,1713965439611,-500.0,0.00016438,2]
[323387589,1713965439621,-500.0,0.00016438,2]
[323387590,1713965439630,-507.72204126,0.00016438,2]
[323387591,1713965439639,-501.49946375,0.00016438,2]
[323387592,1713965439649,-500.0,0.00016438,2]
[323387593,1713965439659,-500.58805074,0.00016438,2]
[323387594,1713965439668,-505.55196948,0.00016438,2]
[323387596,1713965439678,-500.0,0.00016438,2]
[323387597,1713965439688,-500.0,0.00016438,2]
[323387598,1713965439699,-480.16175326,0.00016438,2]
[323387599,1713965439708,-500.0,0.00016438,2]
[323387600,1713965439717,-500.0,0.00016438,2]
[323387601,1713965439726,-500.0,0.00016438,2]
[323387602,1713965439735,-500.0,0.00016438,2]
[323387603,1713965439744,-500.0,0.00016438,2]
[323387604,1713965439753,-500.0,0.00016438,2]
[323387605,1713965439762,-628.76,0.00016438,2]
[323387606,1713965439771,-514.86978296,0.00016438,2]
[323387607,1713965439781,-500.0,0.00016438,2]
[323387608,1713965439790,-505.60295844,0.00016438,2]
[323387609,1713965439800,-500.0,0.00016438,2]
[323387610,1713965439809,-1000.0,0.00016438,2]
[323387611,1713965439819,-500.0,0.00016438,2]
[323387612,1713965439829,-566.96,0.00016438,2]
[323387613,1713965439839,-492.3056364,0.00016438,2]
[323387614,1713965439849,-500.0,0.00016438,2]
[323387616,1713965439859,-500.0,0.00016438,2]
[323387618,1713965439869,-601.3,0.00016438,2]
[323387620,1713965439878,-500.0,0.00016438,2]
[323387622,1713965439887,-507.9712587,0.00016438,2]
[323387624,1713965439896,-623.46639961,0.00016438,2]
[323387625,1713965439906,-218.09013133,0.00016438,2]
[323387627,1713965439915,-500.0,0.00016438,2]
[323387629,1713965439925,-500.0,0.00016438,2]
[323387631,1713965439934,-500.0,0.00016438,2]
[323387633,1713965439943,-254.89220478,0.00016438,2]
[323387635,1713965439955,-187.22870139,0.00016438,2]
[323387637,1713965439964,-500.0,0.00016438,2]
[323387639,1713965439973,-500.0,0.00016438,2]
[323387641,1713965439982,-500.0,0.00016438,2]
[323387643,1713965439991,-500.0,0.00016438,2]
[323387645,1713965440000,-500.0,0.00016438,2]
[323387647,1713965440010,-500.0,0.00016438,2]
[323387649,1713965440019,-500.0,0.00016438,2]
[323387651,1713965440028,-500.0,0.00016438,2]
[323387653,1713965440037,-500.0,0.00016438,2]
[323387655,1713965440046,-500.0,0.00016438,2]
[323387657,1713965440056,-500.0,0.00016438,2]
[323387660,1713965440071,-1005.63,0.00016438,2]
[323387662,1713965440081,-500.0,0.00016438,2]
[323387664,1713965440091,-500.0,0.00016438,2]
[323387666,1713965440100,-500.0,0.00016438,2]
[323387668,1713965440110,-500.0,0.00016438,2]
[323387670,1713965440119,-500.0,0.00016438,2]
[323387672,1713965440129,-187.90216199,0.00016438,2]
[323387674,1713965440138,-588.62107342,0.00016438,2]
[323387676,1713965440148,-500.0,0.00016438,2]
[323387678,1713965440157,-255.904104,0.00016438,2]
[323387680,1713965440166,-595.15,0.00016438,2]
[323387682,1713965440176,-500.0,0.00016438,2]
[323387684,1713965440185,-502.60297434,0.00016438,2]
[323387686,1713965440194,-500.0,0.00016438,2]
[323387688,1713965440210,-500.0,0.00016438,2]
[323387690,1713965440219,-645.92,0.00016438,2]
[323387692,1713965440227,-600.61940075,0.00016438,2]
[323387694,1713965440236,-502.90736301,0.00016438,2]
[323387696,1713965440245,-500.0,0.00016438,2]
[323387698,1713965440254,-723.3,0.00016438,2]
[323387700,1713965440263,-535.1087596,0.00016438,2]
[323387702,1713965440271,-500.0,0.00016438,2]
[323387703,1713965440281,-500.39097742,0.00016438,2]
[323387705,1713965440290,-500.0,0.00016438,2]
[323387707,1713965440300,-500.0,0.00016438,2]
[323387709,1713965440309,-500.0,0.00016438,2]
[323387711,1713965440319,-500.0,0.00016438,2]
[323387713,1713965440328,-500.0,0.00016438,2]
[323387715,1713965440338,-500.0,0.00016438,2]
[323387717,1713965440347,-501.55250152,0.00016438,2]
[323387719,1713965440357,-500.0,0.00016438,2]
[323387721,1713965440367,-500.0,0.00016438,2]
[323387723,1713965440377,-500.0,0.00016438,2]
[323387725,1713965440386,-502.26229951,0.00016438,2]
[323387727,1713965440395,-500.0,0.00016438,2]
[323387730,1713965440405,-500.0,0.00016438,2]
[323387732,1713965440415,-500.0,0.00016438,2]
[323387733,1713965440424,-500.0,0.00016438,2]
[323387735,1713965440433,-500.0,0.00016438,2]
[323387737,1713965440443,-500.79984815,0.00016438,2]
[323387739,1713965440458,-500.0,0.00016438,2]
[323387741,1713965440467,-500.0,0.00016438,2]
[323387743,1713965440477,-500.66767919,0.00016438,2]
[323387745,1713965440490,-500.63077636,0.00016438,2]
[323387747,1713965440499,-500.0,0.00016438,2]
[323387749,1713965440508,-507.7455405,0.00016438,2]
[323387751,1713965440518,-500.0,0.00016438,2]
[323387753,1713965440527,-502.18138017,0.00016438,2]
[323387755,1713965440536,-924.92,0.00016438,2]
[323387757,1713965440545,-500.0,0.00016438,2]
[323387759,1713965440554,-500.0,0.00016438,2]
[323387761,1713965440564,-500.0,0.00016438,2]
[323387763,1713965440574,-2356.08,0.00016438,2]
[323387765,1713965440584,-611.61229877,0.00016438,2]
[323387767,1713965440593,-424.82908857,0.00016438,2]
[323387769,1713965440603,-500.0,0.00016438,2]
[323387771,1713965440612,-500.0,0.00016438,2]
[323387773,1713965440622,-500.0,0.00016438,2]
[323387775,1713965440632,-613.48,0.00016438,2]
[323387777,1713965440642,-610.11017992,0.00016438,2]
[323387779,1713965440651,-500.0,0.00016438,2]
[323387781,1713965440660,-944.09,0.00016438,2]
[323387783,1713965440670,-500.28860774,0.00016438,2]
[323387785,1713965440680,-747.83,0.00016438,2]
[323387804,1713965440849,-500.0,0.00016438,2]
[323387806,1713965440859,-500.0,0.00016438,2]
[323387808,1713965440868,-500.0,0.00016438,2]
[323387810,1713965440877,-500.0,0.00016438,2]
[323387812,1713965440887,-1016.98,0.00016438,2]
[323387814,1713965440896,-500.0,0.00016438,2]
[323387816,1713965440905,-500.0,0.00016438,2]
[323387818,1713965440914,-500.0,0.00016438,2]
[323387820,1713965440923,-609.68729219,0.00016438,2]
[323387822,1713965440932,-500.30422608,0.00016438,2]
[323387824,1713965440941,-380.87293409,0.00016438,2]
[323387826,1713965440956,-500.52186241,0.00016438,2]
[323387828,1713965440965,-500.0,0.00016438,2]
[323387830,1713965440974,-856.77,0.00016438,2]
[323387832,1713965440983,-500.0,0.00016438,2]
[323387834,1713965440992,-503.43849542,0.00016438,2]
[323387836,1713965441001,-500.0,0.00016438,2]
[323387838,1713965441011,-500.0,0.00016438,2]
[323387840,1713965441019,-500.0,0.00016438,2]
[323387842,1713965441029,-2004.44,0.00016438,2]
[323387844,1713965441038,-500.0,0.00016438,2]
[323387845,1713965441049,-500.0,0.00016438,2]
[323387846,1713965441058,-505.59078504,0.00016438,2]
[323387847,1713965441067,-1355.25,0.00016438,2]
[323387848,1713965441076,-500.0,0.00016438,2]
[323387849,1713965441087,-500.0,0.00016438,2]
[323387850,1713965441096,-763.09,0.00016438,2]
[323387851,1713965441120,-624.27,0.00016438,2]
[323387852,1713965441130,-518.06,0.00016438,2]
[323387853,1713965441139,-500.0,0.00016438,2]
[323387854,1713965441148,-500.0,0.00016438,2]
[323387855,1713965441158,-1613.68,0.00016438,2]
[323387856,1713965441167,-500.0,0.00016438,2]
[323387857,1713965441176,-500.33849054,0.00016438,2]
[323387858,1713965441185,-500.0,0.00016438,2]
[323387859,1713965441194,-389.04537626,0.00016438,2]
[323387860,1713965441207,-1024.11,0.00016438,2]
[323387861,1713965441216,-500.0,0.00016438,2]
[323387863,1713965441225,-500.0,0.00016438,2]
[323387864,1713965441234,-765.24,0.00016438,2]
[323387865,1713965441243,-500.0,0.00016438,2]
[323387866,1713965441253,-509.54472222,0.00016438,2]
[323387867,1713965441262,-500.0,0.00016438,2]
[323387868,1713965441271,-500.0,0.00016438,2]
[323387869,1713965441280,-186.66324189,0.00016438,2]
[323387870,1713965441289,-500.0,0.00016438,2]
[323387871,1713965441298,-500.0,0.00016438,2]
[323387872,1713965441308,-500.0,0.00016438,2]
[323387873,1713965441317,-1563.32,0.00016438,2]
[323387874,1713965441326,-500.0,0.00016438,2]
[323387875,1713965441335,-500.0,0.00016438,2]
[323387876,1713965441345,-1151.2,0.00016438,2]
[323387877,1713965441354,-500.0,0.00016438,2]
[323387878,1713965441363,-500.0,0.00016438,2]
[323387879,1713965441371,-500.0,0.00016438,2]
[323387880,1713965441380,-500.0,0.00016438,2]
[323387881,1713965441389,-528.40626369,0.00016438,2]
[323387882,1713965441399,-310.42600251,0.00016438,2]
[323387883,1713965441408,-500.0,0.00016438,2]
[323387884,1713965441422,-500.88350996,0.00016438,2]
[323387885,1713965441430,-500.0,0.00016438,2]
[323387886,1713965441439,-500.0,0.00016438,2]
[323387887,1713965441453,-500.0,0.00016438,2]
[323387888,1713965441462,-829.83,0.00016438,2]
[323387889,1713965441471,-700.25,0.00016438,2]
[323387890,1713965441483,-500.0,0.00016438,2]
[323387891,1713965441492,-501.36285965,0.00016438,2]
[323387892,1713965441501,-502.77968063,0.00016438,2]
[323387893,1713965441511,-151.36560727,0.00016438,2]
[323387894,1713965441520,-500.0,0.00016438,2]
[323387895,1713965441529,-1054.76,0.00016438,2]
[323387896,1713965441541,-151.0,0.00016438,2]
[323387897,1713965441550,-275.93619471,0.00016438,2]
[323387898,1713965441560,-1299.98,0.00016438,2]
[323387899,1713965441570,-1289.89,0.00016438,2]
[323387900,1713965441579,-500.0,0.00016438,2]
[323387901,1713965441588,-500.0,0.00016438,2]
[323387902,1713965441597,-500.0,0.00016438,2]
[323387903,1713965441606,-432.75212267,0.00016438,2]
[323387904,1713965441615,-500.0,0.00016438,2]
[323387905,1713965441625,-500.0,0.00016438,2]
[323387906,1713965441634,-500.0,0.00016438,2]
[323387907,1713965441643,-500.0,0.00016438,2]
[323387908,1713965441653,-1060.8,0.00016438,2]
[323387909,1713965441663,-500.0,0.00016438,2]
[323387910,1713965441672,-500.23811405,0.00016438,2]
[323387911,1713965441681,-500.0,0.00016438,2]
[323387912,1713965441690,-500.0,0.00016438,2]
[323387913,1713965441701,-199.93979782,0.00016438,2]
[323387914,1713965441724,-300.06020218,0.00016438,2]
[323387915,1713965441734,-504.04218812,0.00016438,2]
[323387916,1713965441743,-3123.51,0.00016438,2]
[323387917,1713965441753,-500.0,0.00016438,2]
[323387918,1713965441763,-500.0,0.00016438,2]
[323387919,1713965441772,-544.68851495,0.00016438,2]
[323387920,1713965441782,-500.0,0.00016438,2]
[323387921,1713965441791,-5257.38,0.00016438,2]
[323387922,1713965441800,-313.11472914,0.00016438,2]
[323387923,1713965441809,-502.80810411,0.00016438,2]
[323387924,1713965441818,-545.99,0.00016438,2]
[323387925,1713965441828,-500.0,0.00016438,2]
[323387926,1713965441837,-500.0,0.00016438,2]
[323387927,1713965441847,-500.0,0.00016438,2]
[323387928,1713965441857,-2799.44,0.00016438,2]
[323387929,1713965441866,-503.30258881,0.00016438,2]
[323387930,1713965441875,-500.0,0.00016438,2]
[323387931,1713965441884,-500.0,0.00016438,2]
[323387932,1713965441893,-500.0,0.00016438,2]
[323387933,1713965441902,-500.0,0.00016438,2]
[323387934,1713965441912,-421.82999351,0.00016438,2]
[323387935,1713965441921,-500.0,0.00016438,2]
[323387936,1713965441930,-500.0,0.00016438,2]
[323387937,1713965441939,-500.0,0.00016438,2]
[323387938,1713965441954,-500.0,0.00016438,2]
[323387939,1713965441964,-500.0,0.00016438,2]
[323387940,1713965441974,-872.72,0.00016438,2]
[323387941,1713965441983,-500.0,0.00016438,2]
[323387942,1713965441992,-500.0,0.00016438,2]
[323387943,1713965442001,-416.13026445,0.00016438,2]
[323387948,1713965442629,-186.16529809,0.00012034,2]
[323387949,1713965442638,-83.86973555,0.00016438,2]
[323387950,1713965442648,-500.0,0.00016438,2]
[323387951,1713965442657,-504.32436504,0.00016438,2]
[323387952,1713965442666,-500.0,0.00016438,2]
[323387953,1713965442676,-154.84515485,0.00016438,2]
[323387955,1713965442684,-500.0,0.00016438,2]
[323387956,1713965442693,-508.89738172,0.00016438,2]
[323387958,1713965442706,-500.0,0.00016438,2]
[323387960,1713965442715,-500.0,0.00016438,2]
[323387962,1713965442724,-500.0,0.00016438,2]
[323387964,1713965442733,-239.353766,0.00016438,2]
[323387966,1713965442742,-239.353766,0.00016438,2]
[323387967,1713965442751,-239.353766,0.00016438,2]
[323387968,1713965442760,-239.353766,0.00016438,2]
[323387969,1713965442770,-500.0,0.00016438,2]
[323387970,1713965442779,-500.0,0.00016438,2]
[323387971,1713965442787,-239.353766,0.00016438,2]
[323387972,1713965442797,-239.353766,0.00016438,2]
[323387973,1713965442806,-239.353766,0.00016438,2]
[323387974,1713965442816,-139.89620237,0.00016438,2]
[323387975,1713965442829,-99.45756363,0.00016438,2]
[323387976,1713965442838,-500.0,0.00016438,2]
[323387977,1713965442847,-249.23205323,0.00016438,2]
[323387991,1713966211227,150.0,0.000226,23]
[323387994,1713966556826,15000.0,0.0001116,2]
[323388004,1713966632347,-1490.54643083,0.00011152,2]
[323388005,1713966632356,-549.6120096,0.00011153,2]
[323388006,1713966632366,-329.68012038,0.00011153,2]
[323388007,1713966632378,-186.16529809,0.00011153,2]
[323388008,1713966632387,-760.12231984,0.00011154,2]
[323388009,1713966632400,-48.46612666,0.00011154,2]
[323388010,1713966632409,-1890.36328834,0.00011155,2]
[323388011,1713966632418,-162.04590632,0.00011156,2]
[323388012,1713966632428,-596.92086252,0.00011156,2]
[323388013,1713966632437,-596.92086252,0.00011156,2]
[323388014,1713966632447,-1620.53461599,0.00011157,2]
[323388015,1713966632456,-154.84515485,0.00011157,2]
[323388016,1713966632465,-300.0,0.00011158,2]
[323388017,1713966632475,-300.0,0.00011158,2]
[323388018,1713966632484,-18618.12783125,0.00011159,2]
[323388019,1713966632496,-1034.0194,0.00011159,2]
[323388079,1713966638466,-39517.58852615,0.00011159,2]
[323388082,1713966638476,-9900.0,0.0001116,2]
[323388083,1713966638485,-5801.77357762,0.00012126,2]
[323388086,1713966638495,-1011.2536424,0.00012141,2]
[323388087,1713966638504,-389561.29535683,0.0001224,2]
[323388090,1713966638516,-992.57733001,0.0001224,2]
[323388187,1713966643540,-8525.8247146,0.0001224,2]
[323388234,1713966760714,153.03903881,0.00011051,2]
[323388235,1713966788762,-468.51779384,0.00011149,2]
[323388236,1713966788799,-154.84515485,0.0001115,2]
[323388237,1713966788835,-300.0,0.0001115,2]
[323388238,1713966788872,-300.0,0.0001115,2]
[323388239,1713966788912,-1090.33777229,0.00011151,2]
[323388252,1713967141889,10000.0,0.00010507,2]
[323388253,1713967141921,14900.0,0.00010507,2]
[323388255,1713967218416,15000.0,0.00010507,2]
[323388256,1713967218449,1092.92827153,0.00010507,2]
[323388257,1713967238432,7601.92149049,0.00010507,2]
[323388258,1713967256448,10000.0,0.00010507,2]
[323388259,1713967256480,6092.92827153,0.00010507,2]
[323388261,1713967274447,4851.239311,0.00010507,2]
[323388262,1713967326612,176.4339089,0.00011013,2]
[323388264,1713967450384,596.92086252,0.0001111,2]
[323388265,1713967461545,186.16529809,0.0001111,2]
[323388266,1713967478719,6508.09134527,0.00011109,2]
[323388267,1713967482558,1620.53461599,0.0001111,2]
[323388268,1713967501356,1890.36328834,0.0001111,2]
[323388269,1713967503279,21.49068089,0.0001111,2]
[323388270,1713967597085,1131.7504978,0.00010944,2]
[323388287,1713967832505,-7868.0386131,0.0001121,2]
[323388288,1713967832515,-300.0,0.00011211,2]
[323388289,1713967832525,-300.0,0.00011211,2]
[323388290,1713967832535,-186.16529809,0.00011211,2]
[323388291,1713967832545,-1890.36328834,0.00011211,2]
[323388292,1713967832562,-49093.30863138,0.00011217,2]
[323388365,1713967838516,-10076.42712602,0.00011217,2]
[323388366,1713967838525,-24900.0,0.00011218,2]
[323388368,1713967838534,-1011.2536424,0.00012139,2]
[323388370,1713967838543,-471.39405862,0.00012237,2]
[323388372,1713967838553,-883.78313678,0.00012237,2]
[323388373,1713967838562,-188.27033258,0.00012237,2]
[323388375,1713967838571,-1016.53700423,0.00012238,2]
[323388376,1713967838580,-5801.77357762,0.00012238,2]
[323388377,1713967838589,-264.28434805,0.00012239,2]
[323388378,1713967838598,-807.8747478,0.00012239,2]
[323388380,1713967838608,-420.0,0.00012317,2]
[323388381,1713967838617,-420.0,0.00012332,2]
[323388382,1713967838626,-667.55612959,0.00012391,2]
[323388383,1713967838635,-359345.16847316,0.00012503,2]
[323388384,1713967838661,-1000.96559999,0.00012503,2]
[323388385,1713967838673,-3001.77687,0.00012503,2]
[323388386,1713967838835,-14934.14201158,0.00012503,2]
[323388391,1713967840968,-4313.12018771,0.00012503,2]
[323388392,1713967840982,-3299.18182052,0.00012503,2]
[323388393,1713967840993,-15728.68926551,0.00012503,2]
[323388394,1713967841012,-4726.31565543,0.00012503,2]
[323388395,1713967841023,-537.78571416,0.00012503,2]
[323388416,1713967843692,-777.95818802,0.00012503,2]
[323388417,1713967843749,-1973.3930542,0.00012503,2]
[323388419,1713967843813,-400.14620592,0.00012503,2]
[323388421,1713967843823,-1011.2536424,0.00012504,2]
[323388423,1713967843832,-1011.2536424,0.00012869,2]
[323388424,1713967843841,-157.69768027,0.00013141,2]
[323388425,1713967843850,-211.98635091,0.00013141,2]
[323388426,1713967843860,-1197.72826313,0.00013142,2]
[323388427,1713967843869,-329.62886819,0.00013143,2]
[323388429,1713967843879,-162.36286242,0.00013143,2]
[323388431,1713967843888,-1011.2536424,0.00013234,2]
[323388432,1713967843898,-565.84062825,0.00013246,2]
[323388434,1713967843907,-185.94441437,0.00013248,2]
[323388436,1713967843916,-154.99403319,0.00013248,2]
[323388438,1713967843925,-154.90534822,0.00013248,2]
[323388439,1713967843934,-476.15676877,0.00013248,2]